bitfinex/quotes_SOLUSD_20240729
["timestamp","ask_amount","ask_price","bid_price","bid_amount"]
[1722223352418,0.17,193.36,193.27,21.4384]
[1722223352597,4.3074,193.36,193.27,21.4384]
[1722223352798,0.17,193.36,193.27,21.4384]
[1722223354705,20.0,193.38,193.27,21.4384]
[1722223354903,35.55,193.41,193.27,21.4384]
[1722223355098,0.34,193.4,193.28,1.03454289]
[1722223355323,0.34,193.4,193.27,21.4384]
[1722223355718,4.1367,193.39,193.27,21.4384]
[1722223356604,0.34,193.4,193.27,21.4384]
[1722223356822,45.34,193.4,193.27,21.4384]
[1722223357026,20.0,193.39,193.27,21.4384]
[1722223357625,4.1358,193.43,193.29,16.5677]
[1722223357802,4.1358,193.43,193.3,1.03439552]
[1722223358006,15.55,193.44,193.29,17.60209552]
[1722223358007,4.136,193.42,193.29,17.60209552]
[1722223358202,15.55,193.44,193.29,17.60209552]
[1722223358511,4.1363,193.41,193.29,17.60209552]
[1722223358713,4.136,193.42,193.29,17.60209552]
[1722223358915,4.1363,193.41,193.3,1.03439572]
[1722223359101,4.1363,193.41,193.29,16.5677]
[1722223359803,4.1363,193.41,193.29,17.60209547]
[1722223360124,4.136,193.43,193.29,17.60209547]
[1722223360324,4.136,193.43,193.3,45.0]
[1722223360800,4.136,193.43,193.29,16.5677]
[1722223360801,35.55,193.45,193.29,16.5677]
[1722223361002,4.1362,193.41,193.29,16.5677]
[1722223361611,4.136,193.43,193.29,16.5677]
[1722223361821,0.34,193.42,193.3,45.0]
[1722223362623,4.4761,193.42,193.29,16.5677]
[1722223362826,4.1365,193.4,193.29,16.5677]
[1722223363004,4.4767,193.39,193.29,16.5677]
[1722223364726,0.34,193.39,193.29,16.5677]
[1722223367030,4.1373,193.37,193.29,16.5677]
[1722223367207,45.34,193.36,193.29,16.5677]
[1722223367622,49.4775,193.36,193.29,16.5677]
[1722223367820,4.1375,193.35,193.29,16.5677]
[1722223368434,0.34,193.34,193.29,16.5677]
[1722223368639,4.1375,193.35,193.29,16.5677]
[1722223368813,71.09,193.34,193.24,16.0458]
[1722223369319,75.2278,193.34,193.24,16.0458]
[1722223371339,71.09,193.34,193.24,16.0458]
[1722223373430,75.2278,193.34,193.24,16.0458]
[1722223373636,20.0,193.33,193.24,16.0458]
[1722223373833,0.17,193.32,193.24,16.0458]
[1722223374333,60.55,193.32,193.24,16.0458]
[1722223374631,45.34,193.32,193.24,16.0458]
[1722223374834,20.0,193.31,193.24,16.0458]
[1722223376724,25.75,193.34,193.24,16.0458]
[1722223376932,20.0,193.33,193.24,16.0458]
[1722223377244,25.75,193.34,193.24,16.0458]
[1722223377841,29.8878,193.34,193.24,16.0458]
[1722223378146,0.34,193.33,193.24,16.0458]
[1722223378645,25.75,193.34,193.24,16.0458]
[1722223380628,32.0229,193.37,193.24,16.0458]
[1722223380945,85.0273,193.36,193.24,16.0458]
[1722223381119,80.89,193.36,193.24,16.0458]
[1722223381740,4.138,193.33,193.24,16.0458]
[1722223381935,20.0,193.33,193.24,16.0458]
[1722223382529,4.1384,193.32,193.24,16.0458]
[1722223382745,24.1384,193.32,193.24,16.0458]
[1722223383142,20.0,193.32,193.24,16.0458]
[1722223383518,4.1386,193.3,193.24,16.0458]
[1722223383718,45.34,193.29,193.24,16.0458]
[1722223384139,49.4788,193.29,193.24,16.0458]
[1722223384646,45.34,193.29,193.24,16.0458]
[1722223384851,20.0,193.31,193.24,16.0458]
[1722223385150,20.0,193.33,193.24,16.0458]
[1722223385348,0.17,193.32,193.24,16.0458]
[1722223385549,20.17,193.33,193.24,16.0458]
[1722223385841,29.8873,193.37,193.24,16.0458]
[1722223386049,25.75,193.37,193.24,16.0458]
[1722223386847,29.8871,193.37,193.24,16.0458]
[1722223387328,20.0,193.36,193.24,16.0458]
[1722223387525,8.59267488,193.41,193.24,16.0458]
[1722223387526,25.75,193.4,193.25,6.6158]
[1722223387836,29.886,193.43,193.27,16.1034]
[1722223388035,29.886,193.43,193.28,46.37433086]
[1722223388530,25.75,193.43,193.28,46.37433086]
[1722223388744,25.75,193.46,193.29,41.8534]
[1722223389050,25.75,193.49,193.32,16.1034]
[1722223389548,4.1352,193.46,193.33,45.0]
[1722223390056,19.6849,193.48,193.33,45.0]
[1722223390246,15.55,193.48,193.33,45.0]
[1722223390622,4.135,193.47,193.33,45.0]
[1722223390826,15.55,193.48,193.33,46.03411418]
[1722223391245,15.55,193.48,193.33,46.03408836]
[1722223391433,4.475,193.47,193.33,46.03408836]
[1722223391639,4.1352,193.46,193.33,45.0]
[1722223392444,20.34,193.47,193.33,45.0]
[1722223393457,24.475,193.47,193.33,45.0]
[1722223393655,24.475,193.47,193.34,16.3767]
[1722223393970,4.1352,193.46,193.34,16.3767]
[1722223394279,25.75,193.46,193.34,16.3767]
[1722223395643,4.1355,193.45,193.34,16.3767]
[1722223395840,26.09,193.46,193.34,16.3767]
[1722223396060,45.34,193.45,193.34,16.3767]
[1722223396646,4.1364,193.41,193.34,16.3767]
[1722223396960,4.1362,193.42,193.34,16.3767]
[1722223397167,4.1363,193.41,193.34,16.3767]
[1722223397341,71.09,193.4,193.34,16.3767]
[1722223397547,20.0,193.39,193.34,16.3767]
[1722223397843,45.17,193.38,193.34,16.3767]
[1722223398044,49.4769,193.38,193.34,16.3767]
[1722223398255,24.1371,193.37,193.34,16.3767]
[1722223398455,20.0,193.37,193.34,16.3767]
[1722223399759,4.1375,193.35,193.34,16.3767]
[1722223400073,4.1374,193.36,193.26,6.4499]
[1722223401080,45.75,193.37,193.26,6.4499]
[1722223401249,0.34,193.36,193.26,6.4499]
[1722223401569,45.34,193.36,193.26,6.4499]
[1722223401770,4.1378,193.34,193.26,6.4499]
[1722223402173,20.0,193.35,193.26,6.4499]
[1722223402349,20.0,193.36,193.26,6.4499]
[1722223402548,29.8865,193.4,193.27,16.6428]
[1722223402549,24.1367,193.39,193.27,16.6428]
[1722223402780,45.34,193.38,193.27,16.6428]
[1722223402986,20.0,193.37,193.27,16.6428]
[1722223403866,25.75,193.4,193.27,17.677309]
[1722223404166,0.17,193.39,193.27,17.677309]
[1722223404750,45.17,193.4,193.27,16.6428]
[1722223404945,4.1368,193.39,193.27,16.6428]
[1722223405146,4.137,193.38,193.27,16.6428]
[1722223405368,45.17,193.4,193.27,16.6428]
[1722223405576,4.1372,193.37,193.27,16.6428]
[1722223405874,4.1374,193.36,193.27,16.6428]
[1722223406065,20.34,193.38,193.27,16.6428]
[1722223406268,24.4769,193.38,193.27,16.6428]
[1722223406973,20.34,193.38,193.27,16.6428]
[1722223407372,24.4769,193.38,193.27,16.6428]
[1722223407980,4.1371,193.37,193.27,16.6428]
[1722223408558,20.34,193.38,193.27,16.6428]
[1722223408863,45.0,193.37,193.27,16.6428]
[1722223411163,60.55,193.37,193.27,16.6428]
[1722223411480,46.09,193.36,193.27,16.6428]
[1722223411780,45.0,193.35,193.27,16.6428]
[1722223411968,20.0,193.34,193.27,16.6428]
[1722223415281,0.34,193.36,193.27,16.6428]
[1722223415487,41.3,193.37,193.27,16.6428]
[1722223415782,20.0,193.36,193.27,16.6428]
[1722223418184,20.34,193.38,193.27,16.6428]
[1722223418385,0.34,193.37,193.27,16.6428]
[1722223422266,15.55,193.44,193.27,17.67736443]
[1722223422467,15.55,193.44,193.3,6.3369]
[1722223422671,25.75,193.45,193.31,15.1831]
[1722223422870,25.75,193.45,193.33,15.1831]
[1722223423272,29.8855,193.45,193.33,15.1831]
[1722223423590,25.75,193.45,193.33,15.1831]
[1722223423770,6.039,193.53,193.33,15.1831]
[1722223423771,25.75,193.48,193.33,16.2172913]
[1722223423973,25.75,193.48,193.35,15.7587]
[1722223424791,29.8847,193.48,193.35,15.7587]
[1722223424977,4.135,193.47,193.35,15.7587]
[1722223425784,49.1353,193.46,193.35,15.7587]
[1722223425979,35.55,193.47,193.35,15.7587]
[1722223425980,24.1351,193.47,193.35,15.7587]
[1722223426586,20.0,193.47,193.35,15.7587]
[1722223426792,45.34,193.46,193.35,15.7587]
[1722223426981,0.34,193.46,193.35,15.7587]
[1722223428372,4.4752,193.46,193.35,15.7587]
[1722223428895,20.34,193.46,193.35,15.7587]
[1722223430283,20.0,193.45,193.35,15.7587]
[1722223430490,20.0,193.47,193.35,15.7587]
[1722223431485,20.0,193.47,193.35,16.79278492]
[1722223431882,4.1352,193.46,193.35,15.7587]
[1722223432182,4.1356,193.44,193.35,15.7587]
[1722223432392,0.34,193.43,193.35,15.7587]
[1722223433086,4.4759,193.43,193.35,15.7587]
[1722223433993,15.55,193.41,193.35,15.7587]
[1722223434299,20.0,193.4,193.35,15.7587]
[1722223435092,20.0,193.41,193.35,15.7587]
[1722223435393,0.34,193.43,193.35,15.7587]
[1722223438278,20.34,193.43,193.35,15.7587]
[1722223439095,4.4759,193.43,193.35,15.7587]
[1722223439396,20.34,193.43,193.35,15.7587]
[1722223439900,4.1361,193.42,193.35,15.7587]
[1722223440108,0.34,193.41,193.35,15.7587]
[1722223440294,69.1361,193.42,193.35,15.7587]
[1722223440603,0.34,193.41,193.35,15.7587]
[1722223441708,4.4764,193.41,193.35,15.7587]
[1722223442301,4.1365,193.4,193.35,15.7587]
[1722223442884,4.4768,193.39,193.35,15.7587]
[1722223443187,4.137,193.38,193.35,15.7587]
[1722223443395,0.34,193.37,193.35,15.7587]
[1722223444279,49.4771,193.37,193.35,15.7587]
[1722223444508,49.4771,193.37,193.3,6.4573]
[1722223444509,35.55,193.36,193.3,15.1451]
[1722223444808,45.34,193.35,193.3,15.1451]
[1722223445213,20.0,193.36,193.3,15.1451]
[1722223445709,20.0,193.37,193.3,15.1451]
[1722223445884,20.34,193.38,193.3,15.1451]
[1722223446908,20.0,193.38,193.3,15.1451]
[1722223447102,20.0,193.39,193.3,15.1451]
[1722223448408,19.6856,193.45,193.31,6.5308]
[1722223448612,15.55,193.45,193.32,15.2098]
[1722223448791,19.6854,193.45,193.32,15.2098]
[1722223449121,4.1358,193.43,193.32,15.2098]
[1722223449413,29.8858,193.43,193.32,15.2098]
[1722223449588,45.4358,193.43,193.32,15.2098]
[1722223449791,65.0,193.42,193.32,15.2098]
[1722223450007,0.34,193.41,193.32,15.2098]
[1722223450306,15.55,193.46,193.32,15.2098]
[1722223450713,20.0,193.45,193.32,15.2098]
[1722223451409,29.8854,193.45,193.32,15.2098]
[1722223451792,4.1359,193.43,193.32,15.2098]
[1722223452112,0.34,193.42,193.32,15.2098]
[1722223452296,0.34,193.43,193.32,15.2098]
[1722223452495,20.026,193.43,193.32,15.2098]
[1722223452711,65.0,193.42,193.32,15.2098]
[1722223452901,0.34,193.41,193.32,15.2098]
[1722223454613,4.1365,193.4,193.32,15.2098]
[1722223454816,4.4767,193.39,193.32,15.2098]
[1722223455123,49.137,193.38,193.32,15.2098]
[1722223455292,20.0,193.37,193.32,15.2098]
[1722223455790,20.0,193.38,193.32,15.2098]
[1722223456192,20.0,193.41,193.32,15.2098]
[1722223456798,0.34,193.42,193.32,15.2098]
[1722223457014,19.6856,193.44,193.32,15.2098]
[1722223457213,4.1359,193.43,193.32,15.2098]
[1722223458219,24.1359,193.43,193.32,15.2098]
[1722223458424,15.55,193.4,193.32,15.2098]
[1722223458714,4.1367,193.39,193.32,15.2098]
[1722223458922,4.1369,193.38,193.32,15.2098]
[1722223459126,24.3067,193.39,193.32,15.2098]
[1722223459419,0.17,193.38,193.32,15.2098]
[1722223459792,20.17,193.38,193.32,15.2098]
[1722223460193,0.17,193.38,193.32,15.2098]
[1722223460394,20.0,193.37,193.32,15.2098]
[1722223460714,0.17,193.38,193.32,15.2098]
[1722223460916,45.34,193.39,193.32,15.2098]
[1722223461216,20.0,193.38,193.32,15.2098]
[1722223464018,24.1369,193.38,193.32,15.2098]
[1722223464195,0.34,193.37,193.32,15.2098]
[1722223468015,0.34,193.37,193.29,16.1822]
[1722223468212,41.3,193.36,193.29,16.1822]
[1722223468410,20.0,193.38,193.29,16.1822]
[1722223468411,19.6883,193.32,193.29,16.1822]
[1722223468609,15.55,193.32,193.29,16.1822]
[1722223468808,65.34,193.31,193.29,16.1822]
[1722223469726,20.34,193.31,193.29,16.1822]
[1722223470022,0.17,193.31,193.29,16.1822]
[1722223470207,20.0,193.32,193.29,16.1822]
[1722223470405,20.0,193.35,193.29,16.1822]
[1722223470804,4.1363,193.41,193.29,16.1822]
[1722223471022,15.55,193.41,193.29,16.1822]
[1722223471607,19.6868,193.39,193.29,16.1822]
[1722223472122,4.1371,193.37,193.29,16.1822]
[1722223472932,4.1369,193.38,193.29,16.1822]
[1722223473307,24.1369,193.38,193.29,16.1822]
[1722223474307,20.0,193.37,193.29,16.1822]
[1722223474923,20.0,193.38,193.29,16.1822]
[1722223475227,25.75,193.42,193.29,16.1822]
[1722223475412,25.75,193.42,193.32,15.3607]
[1722223475814,29.886,193.42,193.32,15.3607]
[1722223476014,15.55,193.41,193.32,15.3607]
[1722223476314,4.1367,193.39,193.32,15.3607]
[1722223476510,0.17,193.38,193.32,15.3607]
[1722223476830,4.1371,193.38,193.32,15.3607]
[1722223477304,20.34,193.39,193.32,15.3607]
[1722223477507,0.34,193.39,193.32,15.3607]
[1722223478832,20.0,193.41,193.32,15.3607]
[1722223479026,20.34,193.41,193.32,15.3607]
[1722223479542,45.0,193.4,193.32,15.3607]
[1722223479726,4.1371,193.38,193.32,15.3607]
[1722223480034,15.72,193.37,193.32,15.3607]
[1722223480212,0.17,193.37,193.32,15.3607]
[1722223480416,49.4773,193.37,193.32,15.3607]
[1722223480622,45.34,193.37,193.32,15.3607]
[1722223481138,49.4771,193.37,193.32,15.3607]
[1722223482040,45.34,193.37,193.32,15.3607]
[1722223483644,15.55,193.36,193.32,15.3607]
[1722223483949,19.6882,193.32,193.27,15.9969]
[1722223484315,65.34,193.31,193.27,15.9969]
[1722223485623,20.0,193.31,193.27,15.9969]
[1722223485922,20.0,193.34,193.27,15.9969]
[1722223486115,0.34,193.33,193.27,15.9969]
[1722223486336,15.55,193.32,193.27,15.9969]
[1722223486534,65.34,193.31,193.27,15.9969]
[1722223488438,45.34,193.31,193.27,15.9969]
[1722223489846,20.0,193.3,193.27,15.9969]
[1722223490032,0.17,193.29,193.27,15.9969]
[1722223490336,0.34,193.29,193.27,15.9969]
[1722223492961,20.0,193.3,193.27,15.9969]
[1722223494424,24.1386,193.3,193.27,15.9969]
[1722223494740,24.1386,193.3,193.16,1.03488229]
[1722223494941,24.1386,193.3,193.21,15.9594]
[1722223494942,29.8893,193.27,193.21,15.9594]
[1722223495135,4.1397,193.26,193.21,15.9594]
[1722223495441,4.1397,193.25,193.21,15.9594]
[1722223495621,24.1397,193.25,193.21,15.9594]
[1722223496238,24.1399,193.24,193.21,15.9594]
[1722223496447,4.1399,193.24,193.21,15.9594]
[1722223497550,15.55,193.22,193.09,22.8267]
[1722223497730,4.1407,193.2,193.09,22.8267]
[1722223497932,61.64,193.21,193.09,22.8267]
[1722223498224,4.1418,193.15,193.09,22.8267]
[1722223498637,4.1416,193.16,193.09,22.8267]
[1722223499357,20.0,193.17,193.09,22.8267]
[1722223499641,0.34,193.2,193.09,22.8267]
[1722223499843,20.0,193.2,193.1,16.1204]
[1722223500233,20.0,193.23,193.1,16.1204]
[1722223500624,19.689,193.29,193.14,16.1204]
[1722223500949,25.75,193.3,193.16,16.1204]
[1722223501153,4.1395,193.26,193.16,16.1204]
[1722223501327,25.75,193.3,193.16,16.1204]
[1722223501529,4.1393,193.27,193.16,16.1204]
[1722223501738,41.3,193.3,193.16,16.1204]
[1722223501938,20.0,193.29,193.17,1.03505833]
[1722223502138,4.1392,193.28,193.16,16.1204]
[1722223502342,25.75,193.3,193.16,16.1204]
[1722223502942,4.1388,193.29,193.19,6.0718]
[1722223503148,4.1388,193.29,193.19,7.10677893]
[1722223503353,24.1388,193.29,193.19,7.10677893]
[1722223504152,24.1388,193.29,193.19,6.0718]
[1722223504862,4.139,193.28,193.19,6.0718]
[1722223505145,24.139,193.28,193.19,6.0718]
[1722223505761,20.0,193.27,193.19,6.0718]
[1722223506054,4.139,193.28,193.19,6.0718]
[1722223506240,4.1388,193.29,193.19,6.0718]
[1722223507038,4.1386,193.31,193.2,16.45930596]
[1722223507857,4.1382,193.32,193.2,16.45930596]
[1722223508153,29.888,193.33,193.21,45.0]
[1722223508361,4.1383,193.32,193.22,1.03476071]
[1722223508532,4.1383,193.32,193.21,46.03474958]
[1722223508732,25.75,193.33,193.2,15.4244]
[1722223509154,4.1388,193.29,193.2,15.4244]
[1722223509567,4.1386,193.31,193.2,15.4244]
[1722223510355,4.1386,193.3,193.2,15.4244]
[1722223510655,4.1384,193.31,193.2,15.4244]
[1722223511262,20.0,193.32,193.2,15.4244]
[1722223511455,20.0,193.32,193.22,16.1258]
[1722223511657,20.0,193.32,193.23,1.0347218]
[1722223511954,20.0,193.32,193.22,16.1258]
[1722223513163,24.1382,193.32,193.22,16.1258]
[1722223513964,4.1384,193.31,193.22,16.1258]
[1722223514151,20.0,193.32,193.22,16.1258]
[1722223514358,20.0,193.32,193.22,17.16058817]
[1722223514861,20.0,193.32,193.22,16.1258]
[1722223515375,20.0,193.32,193.23,45.0]
[1722223517746,24.1384,193.32,193.23,45.0]
[1722223518448,20.0,193.32,193.23,45.0]
[1722223521565,2.07862113,193.36,193.24,7.32359808]
[1722223521768,25.75,193.39,193.26,15.0289]
[1722223522070,25.75,193.39,193.26,16.06338374]
[1722223522245,25.75,193.39,193.26,15.0289]
[1722223522569,4.137,193.38,193.26,15.0289]
[1722223522755,24.137,193.38,193.26,15.0289]
[1722223523573,4.137,193.38,193.26,15.0289]
[1722223523760,4.137,193.38,193.27,45.0]
[1722223524153,4.1366,193.4,193.29,6.1395]
[1722223524354,29.8862,193.42,193.3,16.56437381]
[1722223525156,20.0,193.41,193.3,16.56437381]
[1722223526056,20.0,193.41,193.31,45.0]
[1722223526371,24.1363,193.41,193.3,15.53]
[1722223526963,20.0,193.41,193.3,15.53]
[1722223527160,4.137,193.38,193.3,15.53]
[1722223527368,4.1372,193.37,193.3,15.53]
[1722223527558,24.1372,193.37,193.3,15.53]
[1722223528174,20.0,193.37,193.26,15.251]
[1722223528381,29.8876,193.35,193.26,15.251]
[1722223528557,20.0,193.34,193.26,15.251]
[1722223529574,25.75,193.39,193.27,1.03462208]
[1722223529779,20.17,193.38,193.28,21.829]
[1722223530260,20.0,193.38,193.28,21.829]
[1722223530773,20.0,193.38,193.29,1.03444362]
[1722223531077,29.8867,193.39,193.29,1.03444362]
[1722223531258,29.8862,193.42,193.29,1.0344034]
[1722223531457,29.8862,193.42,193.3,15.3732]
[1722223531761,29.8862,193.42,193.31,45.0]
[1722223532849,20.0,193.41,193.31,45.0]
[1722223533054,20.0,193.41,193.3,15.3732]
[1722223533254,4.1368,193.39,193.3,15.3732]
[1722223533448,4.1369,193.38,193.3,15.3732]
[1722223533862,24.1369,193.38,193.3,15.3732]
[1722223535160,20.0,193.38,193.3,15.3732]
[1722223537083,25.75,193.42,193.31,45.0]
[1722223537383,29.8854,193.45,193.32,17.61406431]
[1722223537557,29.8854,193.45,193.33,45.0]
[1722223537753,25.75,193.45,193.33,46.0341417]
[1722223538104,25.75,193.45,193.34,21.589]
[1722223538371,25.75,193.45,193.35,45.0]
[1722223538577,29.8848,193.48,193.36,1.03403887]
[1722223538755,4.135,193.47,193.36,1.03403887]
[1722223539669,4.1352,193.46,193.36,1.03403887]
[1722223540182,15.55,193.52,193.37,16.4341]
[1722223540382,25.75,193.5,193.37,16.4341]
[1722223540582,4.1335,193.54,193.39,16.4341]
[1722223540883,4.1339,193.52,193.41,16.4341]
[1722223541073,4.1342,193.51,193.41,16.4341]
[1722223541278,4.1341,193.51,193.41,16.4341]
[1722223541863,29.8846,193.49,193.41,16.4341]
[1722223542685,4.1346,193.49,193.41,16.4341]
[1722223542881,25.75,193.5,193.41,16.4341]
[1722223543068,20.0,193.49,193.41,16.4341]
[1722223543892,0.17,193.52,193.41,16.4341]
[1722223544187,25.75,193.54,193.41,17.46783752]
[1722223544574,25.75,193.54,193.42,45.0]
[1722223544775,25.75,193.54,193.43,1.03367342]
[1722223545687,25.75,193.54,193.43,22.5462]
[1722223545894,16.3238022,193.58,193.44,16.4662]
[1722223546086,0.7738022,193.58,193.46,16.4662]
[1722223547397,4.1328,193.57,193.46,16.4662]
[1722223547570,4.1331,193.56,193.46,16.4662]
[1722223547779,20.7738022,193.58,193.46,16.4662]
[1722223547780,4.1333,193.55,193.46,16.4662]
[1722223548785,4.1331,193.56,193.46,16.4662]
[1722223548985,29.8831,193.56,193.46,16.4662]
[1722223549495,25.75,193.56,193.46,16.4662]
[1722223552396,0.34,193.57,193.46,16.4662]
[1722223552594,4.4728,193.57,193.46,16.4662]
[1722223552903,24.4728,193.57,193.46,16.4662]
[1722223553802,0.34,193.57,193.47,6.316]
[1722223555385,0.7738022,193.58,193.47,6.316]
[1722223555791,0.7738022,193.58,193.48,16.4327]
[1722223556382,0.7738022,193.58,193.5,16.4327]
[1722223557795,0.7738022,193.58,193.51,45.0]
[1722223557989,0.7738022,193.58,193.5,16.4327]
[1722223558505,0.7738022,193.58,193.51,45.0]
[1722223558820,0.7738022,193.58,193.52,16.4327]
[1722223560097,2.15927598,193.67,193.54,16.4327]
[1722223560382,25.75,193.68,193.55,1.03307828]
[1722223560620,4.1309,193.66,193.56,16.4327]
[1722223560905,4.1307,193.67,193.56,16.4327]
[1722223561205,10.3225,193.76,193.57,22.7487]
[1722223561407,4.1303,193.69,193.57,22.7487]
[1722223561903,25.75,193.68,193.57,22.7487]
[1722223562081,41.3,193.64,193.57,16.4327]
[1722223562284,4.1326,193.59,193.57,16.4327]
[1722223562511,41.3,193.61,193.57,16.4327]
[1722223562512,4.1326,193.58,193.57,16.4327]
[1722223562808,4.1332,193.56,193.53,21.6823]
[1722223562992,4.133,193.57,193.53,15.1208]
[1722223563404,24.133,193.57,193.53,15.1208]
[1722223563707,4.1335,193.54,193.53,15.1208]
[1722223563911,20.0,193.57,193.48,22.1257]
[1722223563912,15.55,193.55,193.48,22.1257]
[1722223564211,45.34,193.54,193.48,15.5642]
[1722223564389,49.4736,193.54,193.48,15.5642]
[1722223564790,0.34,193.54,193.48,15.5642]
[1722223565508,65.34,193.55,193.48,15.5642]
[1722223565709,20.0,193.57,193.48,15.5642]
[1722223566305,20.34,193.58,193.48,15.5642]
[1722223566704,0.34,193.58,193.48,15.5642]
[1722223567006,20.0,193.57,193.48,15.5642]
[1722223567191,4.132,193.62,193.5,6.3724]
[1722223567495,4.132,193.62,193.51,15.6827]
[1722223567694,4.132,193.61,193.51,15.6827]
[1722223568299,4.1318,193.62,193.51,15.6827]
[1722223568692,4.132,193.61,193.51,15.6827]
[1722223568889,0.34,193.62,193.51,15.6827]
[1722223569090,4.1326,193.59,193.51,15.6827]
[1722223569308,4.4726,193.58,193.51,15.6827]
[1722223569513,4.1328,193.57,193.51,15.6827]
[1722223570011,0.34,193.58,193.51,15.6827]
[1722223570214,60.89,193.58,193.51,15.6827]
[1722223570409,35.55,193.57,193.51,15.6827]
[1722223570712,45.34,193.56,193.51,15.6827]
[1722223570917,89.81,193.56,193.46,16.5138]
[1722223571217,15.55,193.54,193.46,16.5138]
[1722223571404,15.55,193.52,193.46,16.5138]
[1722223571610,80.89,193.51,193.46,16.5138]
[1722223571793,4.1346,193.49,193.46,16.5138]
[1722223572127,0.34,193.5,193.46,16.5138]
[1722223572316,24.1335,193.55,193.46,16.5138]
[1722223572501,4.1338,193.53,193.46,16.5138]
[1722223572699,0.34,193.52,193.46,16.5138]
[1722223573412,19.6845,193.5,193.46,16.5138]
[1722223573592,0.34,193.49,193.46,16.5138]
[1722223573797,49.4746,193.49,193.46,16.5138]
[1722223574107,45.34,193.49,193.46,16.5138]
[1722223574300,24.1348,193.48,193.46,16.5138]
[1722223574914,20.0,193.48,193.46,16.5138]
[1722223576024,49.4747,193.49,193.46,16.5138]
[1722223576025,45.34,193.49,193.46,16.5138]
[1722223577399,49.4746,193.49,193.46,16.5138]
[1722223578618,0.17,193.49,193.46,16.5138]
[1722223578917,0.17,193.47,193.33,22.8168]
[1722223579116,4.1356,193.44,193.33,22.8168]
[1722223579325,4.1358,193.43,193.33,22.8168]
[1722223579525,4.4758,193.43,193.33,22.8168]
[1722223579727,4.1358,193.43,193.33,22.8168]
[1722223580295,35.55,193.44,193.33,22.8168]
[1722223580497,49.4758,193.43,193.33,22.8168]
[1722223580714,20.0,193.42,193.33,22.8168]
[1722223581502,0.34,193.43,193.34,15.8732]
[1722223581702,20.0,193.45,193.34,15.8732]
[1722223581916,20.0,193.51,193.34,16.90725824]
[1722223582306,15.55,193.51,193.36,15.8732]
[1722223582633,4.1344,193.5,193.36,16.90716675]
[1722223582816,19.6844,193.5,193.36,16.90716675]
[1722223583332,19.6844,193.5,193.37,45.0]
[1722223583707,4.4745,193.49,193.37,45.0]
[1722223583902,4.3045,193.49,193.37,45.0]
[1722223584309,4.135,193.47,193.37,45.0]
[1722223584612,4.1347,193.48,193.37,45.0]
[1722223584805,0.17,193.49,193.38,1.03394439]
[1722223585012,0.34,193.49,193.38,1.03394439]
[1722223585207,4.1341,193.51,193.39,22.135]
[1722223585420,28.92,193.56,193.4,61.68690128]
[1722223585623,39.2531,193.56,193.41,16.5407]
[1722223585808,4.1345,193.49,193.41,16.5407]